bitfinex/quotes_ETHUSD_20240714
["timestamp","ask_amount","ask_price","bid_price","bid_amount"]
[1720963100809,1.08199865,3201.5,3201.4,5.49884]
[1720963101709,1.96862918,3201.7,3201.5,2.49879]
[1720963101892,1.08198706,3201.6,3201.5,2.49879]
[1720963102094,1.21789915,3201.6,3201.5,2.49879]
[1720963103187,1.08198955,3201.6,3201.5,2.49879]
[1720963104623,1.08195519,3201.6,3201.5,2.49879]
[1720963104836,1.08195547,3201.6,3201.5,2.49879]
[1720963108254,2.45891154,3201.8,3201.7,2.49867]
[1720963108402,1.70804663,3201.8,3201.7,2.49867]
[1720963111247,1.57214835,3201.8,3201.7,5.497081]
[1720963111418,0.49024483,3201.8,3201.7,5.497081]
[1720963111620,2.13050039,3201.8,3201.7,5.497081]
[1720963111822,3.21232849,3201.8,3201.7,5.497081]
[1720963112024,0.49024483,3201.8,3201.7,5.497081]
[1720963112526,1.57210908,3201.8,3201.7,5.497081]
[1720963113348,3.21232733,3201.8,3201.7,5.497081]
[1720963113571,1.57210908,3201.8,3201.7,7.377081]
[1720963113738,3.21228814,3201.8,3201.7,7.377081]
[1720963113934,3.21228814,3201.8,3201.7,10.377081]
[1720963114288,1.57210908,3201.8,3201.7,10.377081]
[1720963114783,1.57202542,3201.8,3201.7,10.377081]
[1720963115692,3.21217976,3201.8,3201.7,10.377081]
[1720963116450,0.49024483,3201.8,3201.7,12.726681]
[1720963116692,1.80241184,3201.8,3201.7,12.726681]
[1720963117254,1.80241184,3201.8,3201.7,15.225351]
[1720963117653,0.49024483,3201.8,3201.7,15.225351]
[1720963120995,1.80241184,3201.8,3201.7,15.225351]
[1720963121196,0.49024483,3201.8,3201.7,15.225351]
[1720963121865,0.49024483,3201.8,3201.7,10.377081]
[1720963122073,1.80241184,3201.8,3201.7,10.377081]
[1720963122274,0.49024483,3201.8,3201.7,10.377081]
[1720963122594,0.49024483,3201.8,3201.7,5.49867]
[1720963122895,1.57207974,3201.8,3201.7,5.49867]
[1720963123074,0.49024483,3201.8,3201.7,5.49867]
[1720963123503,3.21197278,3201.8,3201.7,5.49867]
[1720963123663,3.21197278,3201.8,3201.7,9.87734]
[1720963124088,5.69167278,3201.8,3201.7,9.87734]
[1720963124508,2.96994483,3201.8,3201.7,9.87734]
[1720963124808,5.69176542,3201.8,3201.7,9.87734]
[1720963125497,3.21206542,3201.8,3201.7,11.175074]
[1720963125730,1.80214477,3201.8,3201.7,11.175074]
[1720963126293,0.49024483,3201.8,3201.7,11.175074]
[1720963126498,1.80212908,3201.8,3201.7,11.175074]
[1720963126993,1.80212908,3201.8,3201.7,13.673744]
[1720963127331,1.80212908,3201.8,3201.7,14.223744]
[1720963127537,0.15888634,3201.8,3201.7,14.223744]
[1720963127835,1.31188425,3201.9,3201.8,9.37577]
[1720963128036,1.31188425,3201.9,3201.8,13.7981444]
[1720963128552,1.63979304,3202.0,3201.9,6.87702]
[1720963128840,2.72153449,3202.0,3201.9,9.87702]
[1720963129345,1.08174145,3202.0,3201.9,5.49851]
[1720963129819,1.08174145,3202.0,3201.9,2.49851]
[1720963130029,1.08174145,3202.0,3201.9,5.49851]
[1720963130834,3.56914145,3202.0,3201.9,3.0]
[1720963131039,3.56914145,3202.0,3201.9,5.49851]
[1720963131310,3.56920265,3202.0,3201.9,5.49851]
[1720963131530,1.08180265,3202.0,3201.9,5.49851]
[1720963134412,2.4874,3202.3,3202.0,2.49838]
[1720963134719,3.1860469,3202.2,3202.0,2.49838]
[1720963134919,1.96829334,3202.2,3202.0,2.49838]
[1720963135127,1.21766266,3202.1,3202.0,2.49838]
[1720963135440,1.21766283,3202.1,3202.0,2.49838]
[1720963135649,1.21766108,3202.1,3202.0,2.49838]
[1720963136244,1.08177737,3202.1,3202.0,2.49838]
[1720963137418,1.21766394,3202.1,3202.0,2.49838]
[1720963137731,1.21769703,3202.1,3202.0,2.49838]
[1720963138122,1.08181046,3202.1,3202.0,2.49838]
[1720963138657,1.21769487,3202.1,3202.0,2.49838]
[1720963139037,3.18600644,3202.1,3202.0,2.49838]
[1720963139459,1.21769487,3202.1,3202.0,2.49838]
[1720963140536,1.08181046,3202.1,3202.0,2.49838]
[1720963140758,0.13588406,3202.1,3202.0,2.49838]
[1720963140960,1.08179036,3202.1,3202.0,2.49838]
[1720963141280,1.21767373,3202.1,3202.0,2.49838]
[1720963142345,1.08179036,3202.1,3202.0,2.49838]
[1720963143471,1.2176743,3202.1,3202.0,2.49838]
[1720963143667,1.21767331,3202.1,3202.0,2.49838]
[1720963143886,1.21767274,3202.1,3202.0,2.49838]
[1720963144434,3.1858407,3202.1,3202.0,2.49838]
[1720963144665,3.1858407,3202.1,3201.9,20.45300001]
[1720963144867,1.08178937,3202.0,3201.9,20.45300001]
[1720963145172,1.2176823,3202.0,3201.9,3.0]
[1720963145373,1.2176823,3202.0,3201.9,2.49851]
[1720963145574,1.08178937,3202.0,3201.9,5.49851]
[1720963145786,1.08178937,3202.0,3201.9,2.49851]
[1720963146991,1.96816796,3202.1,3201.9,2.49851]
[1720963147192,1.08180962,3202.0,3201.9,2.49851]
[1720963147694,1.08180834,3202.0,3201.9,2.49851]
[1720963148288,1.08180834,3202.0,3201.8,3.0]
[1720963148491,1.08180834,3201.9,3201.8,5.49858]
[1720963148999,1.21770235,3201.9,3201.8,5.49858]
[1720963150094,1.08180834,3201.9,3201.8,5.49858]
[1720963150294,1.96921492,3202.0,3201.9,2.49847]
[1720963150500,3.05105204,3202.0,3201.9,2.49847]
[1720963150796,3.18694198,3202.0,3201.9,2.49847]
[1720963153464,0.13588994,3202.0,3201.9,2.49847]
[1720963153660,1.08183453,3202.0,3201.9,2.49847]
[1720963153891,3.05203596,3202.0,3201.9,2.49847]
[1720963154102,3.1879259,3202.0,3201.9,2.49847]
[1720963154799,1.21772447,3202.0,3201.9,2.49847]
[1720963154996,1.08183453,3202.0,3201.9,2.49847]
[1720963155197,3.05220559,3202.0,3201.9,2.49847]
[1720963155498,3.18809553,3202.0,3201.9,2.49847]
[1720963155713,3.18809553,3202.0,3201.9,5.270885]
[1720963155889,3.18809553,3202.0,3201.9,8.270885]
[1720963156920,3.18832222,3202.0,3201.9,8.270885]
[1720963157207,3.18832029,3202.0,3201.9,10.769395]
[1720963157380,1.21766298,3202.0,3201.9,10.769395]
[1720963160294,1.2176309,3202.0,3201.9,10.769395]
[1720963160698,0.13588994,3202.0,3201.9,10.769395]
[1720963161029,1.21763019,3202.0,3201.9,10.769395]
[1720963161594,3.18834323,3202.0,3201.9,10.769395]
[1720963161795,1.21763019,3202.0,3201.9,10.769395]
[1720963162928,3.18834323,3202.0,3201.9,10.769395]
[1720963163119,5.56814323,3202.0,3201.9,5.49847]
[1720963163325,3.59743019,3202.0,3201.9,5.49847]
[1720963163521,0.13588994,3202.0,3201.9,5.49847]
[1720963163912,1.21770714,3202.0,3201.9,5.49847]
[1720963166833,1.21769723,3202.0,3201.9,5.49847]
[1720963167407,3.05278592,3202.0,3201.9,5.49847]
[1720963167612,3.18867586,3202.0,3201.9,5.49847]
[1720963168822,3.18867586,3202.0,3201.9,3.0]
[1720963169334,1.21769723,3202.0,3201.9,3.0]
[1720963169800,1.21769723,3202.0,3201.9,5.49851]
[1720963170005,0.13588994,3202.0,3201.9,5.49851]
[1720963170343,1.21771946,3202.0,3201.9,5.49851]
[1720963170506,3.18876178,3202.0,3201.9,7.99702]
[1720963171628,3.18876178,3202.0,3201.9,10.852022]
[1720963171830,1.21771946,3202.0,3201.9,10.852022]
[1720963172159,3.05284032,3202.0,3201.9,10.852022]
[1720963172343,3.18873026,3202.0,3201.9,10.852022]
[1720963173412,3.18868317,3202.0,3201.9,10.852022]
[1720963173845,0.13588994,3202.0,3201.9,10.852022]
[1720963174052,1.97104007,3202.0,3201.9,10.852022]
[1720963174253,3.05280288,3202.0,3201.9,10.852022]
[1720963174517,3.18869282,3202.0,3201.9,10.852022]
[1720963175139,3.18869282,3202.0,3201.9,15.230532]
[1720963175453,1.21765275,3202.0,3201.9,15.230532]
[1720963176570,1.21762618,3202.0,3201.9,15.230532]
[1720963176746,1.21761454,3202.0,3201.9,15.230532]
[1720963176941,1.0817246,3202.0,3201.9,15.230532]
[1720963177172,1.21760154,3202.0,3201.9,15.230532]
[1720963177381,1.21760199,3202.0,3201.9,15.230532]
[1720963177575,1.0817246,3202.0,3201.9,15.230532]
[1720963177978,1.21760208,3202.0,3201.9,15.230532]
[1720963178177,1.0817246,3202.0,3201.9,15.230532]
[1720963180087,2.76537211,3202.5,3202.4,2.49812]
[1720963180249,3.98296991,3202.5,3202.4,2.49812]
[1720963182075,6.28189114,3202.5,3202.4,2.49812]
[1720963183289,3.98292814,3202.5,3202.4,2.49812]
[1720963183458,6.28175058,3202.5,3202.4,2.49812]
[1720963183667,1.70772814,3202.5,3202.4,4.99624]
[1720963184766,4.00655058,3202.5,3202.4,4.99624]
[1720963184963,1.70772814,3202.5,3202.4,5.495864]
[1720963186617,1.70766995,3202.5,3202.4,5.495864]
[1720963186993,0.62604762,3202.5,3202.4,5.495864]
[1720963187375,1.70770311,3202.5,3202.4,5.495864]
[1720963187611,1.5718276,3202.5,3202.4,5.495864]
[1720963187786,3.67728765,3202.5,3202.4,5.495864]
[1720963187990,1.70770311,3202.5,3202.4,5.495864]
[1720963188311,3.54128385,3202.5,3202.4,5.495864]
[1720963188515,1.70770311,3202.5,3202.4,5.495864]
[1720963189210,3.67699266,3202.5,3202.4,5.495864]
[1720963189414,3.67699281,3202.5,3202.4,5.495864]
[1720963189821,3.67696002,3202.5,3202.4,5.495864]
[1720963190424,3.67683625,3202.5,3202.4,5.495864]
[1720963190985,1.70767658,3202.5,3202.4,5.495864]
[1720963191283,3.54092481,3202.5,3202.4,5.495864]
[1720963191489,3.67680032,3202.5,3202.4,5.495864]
[1720963191885,1.57180107,3202.5,3202.4,8.495864]
[1720963192221,1.21748435,3202.5,3202.4,8.495864]
[1720963192405,1.08162896,3202.5,3202.4,8.495864]
[1720963193017,1.9688348,3202.7,3202.6,2.49793]
[1720963193234,3.18629581,3202.7,3202.6,2.49793]
[1720963195114,2.10469505,3202.7,3202.6,2.49793]
[1720963195294,3.18629442,3202.7,3202.6,2.49793]
[1720963196433,3.18571297,3202.7,3202.6,2.49793]
[1720963196911,3.18571297,3202.7,3202.5,17.45300001]
[1720963197234,1.08159548,3202.6,3202.5,17.45300001]
[1720963197897,3.18571925,3202.6,3202.5,17.45300001]
[1720963198097,1.21746201,3202.6,3202.5,17.45300001]
[1720963198712,1.21746201,3202.6,3202.4,3.0]
[1720963198915,1.08159548,3202.5,3202.4,3.0]
[1720963199131,1.08159548,3202.6,3202.4,3.0]
[1720963199324,1.08159548,3202.5,3202.4,3.0]
[1720963199638,1.08163118,3202.5,3202.4,3.0]
[1720963199830,1.08163118,3202.6,3202.4,3.0]
[1720963200031,1.96794957,3202.7,3202.4,3.0]
[1720963200336,1.21749491,3202.6,3202.4,3.0]
[1720963200632,1.08163089,3202.5,3202.4,3.0]
[1720963202056,2.4847,3202.8,3202.4,3.0]
[1720963202263,3.18537028,3202.7,3202.4,3.0]
[1720963202467,4.45258922,3202.6,3202.3,17.45300001]
[1720963202621,4.45258922,3202.4,3202.3,17.45300001]
[1720963202969,3.70236525,3202.4,3202.3,17.45300001]
[1720963204665,3.70236525,3202.4,3202.0,2.49842]
[1720963204666,3.70236525,3202.4,3202.0,19.95142001]
[1720963204961,3.18584859,3202.3,3202.0,19.95142001]
[1720963205160,0.13586244,3202.2,3202.0,19.95142001]
[1720963205353,1.08179643,3202.1,3202.0,19.95142001]
[1720963208068,1.08179643,3202.1,3201.9,23.05151001]
[1720963208255,2.72193306,3202.0,3201.9,23.05151001]
[1720963208457,2.4847,3202.4,3201.9,23.05151001]
[1720963208458,2.4847,3202.4,3201.9,26.05151001]
[1720963208780,1.96814505,3202.2,3201.9,22.95151001]
[1720963208947,3.49529848,3202.1,3201.9,22.95151001]
[1720963209148,1.08179848,3202.0,3201.9,22.95151001]
[1720963209756,1.57197792,3202.0,3201.9,22.95151001]
[1720963211762,0.49017944,3202.0,3201.9,22.95151001]
[1720963211959,1.57196573,3202.0,3201.9,22.95151001]
[1720963212360,1.57196587,3202.0,3201.9,22.95151001]
[1720963213494,1.57196587,3202.0,3201.9,8.231518]
[1720963213660,3.21225589,3202.0,3201.9,8.231518]
[1720963213858,1.57196587,3202.0,3201.9,8.231518]
[1720963214191,1.57196587,3202.0,3201.9,5.49851]
[1720963214479,2.4135,3201.9,3201.8,17.45300001]
[1720963214641,3.63117645,3201.9,3201.8,17.45300001]
[1720963214845,5.59980157,3201.9,3201.8,17.45300001]
[1720963215046,5.59978005,3201.9,3201.8,17.45300001]
[1720963215574,3.6313261,3201.9,3201.8,17.45300001]
[1720963215801,5.59978005,3201.9,3201.8,17.45300001]
[1720963216146,3.18628005,3201.9,3201.8,17.45300001]
[1720963217055,3.18628005,3201.9,3201.8,19.95159001]
[1720963217962,1.2178261,3201.9,3201.8,19.95159001]
[1720963218161,3.04985181,3201.9,3201.8,19.95159001]
[1720963218482,3.18572008,3201.9,3201.8,19.95159001]
[1720963219611,3.18572008,3201.9,3201.8,2.49859]
[1720963220346,1.21783406,3201.9,3201.8,2.49859]
[1720963220698,3.04931747,3201.9,3201.8,2.49859]
[1720963220912,3.18520749,3201.9,3201.8,2.49859]
[1720963221701,1.21781944,3201.9,3201.8,2.49859]
[1720963222006,1.21781372,3201.9,3201.8,2.49859]
[1720963222303,0.13589002,3201.9,3201.8,2.49859]
[1720963222506,1.21781229,3201.9,3201.8,2.49859]
[1720963222895,1.08192227,3201.9,3201.8,2.49859]
[1720963225174,1.08189529,3201.9,3201.8,2.49859]
[1720963228383,0.49017944,3202.0,3201.9,2.49851]
[1720963228585,1.57205596,3202.0,3201.9,2.49851]
[1720963229088,1.70795085,3202.0,3201.9,2.49851]
[1720963229519,1.57205596,3202.0,3201.9,2.49851]
[1720963230903,1.57205596,3202.0,3201.9,13.965181]
[1720963231106,0.98282016,3202.0,3201.9,16.965181]
[1720963231327,0.9827544,3202.1,3202.0,9.37529]
[1720963231535,0.9827544,3202.1,3202.0,12.37529]
[1720963231717,0.9827544,3202.1,3202.0,9.87686]
[1720963231921,0.9827544,3202.1,3202.0,15.59206872]
[1720963234045,0.9827544,3202.2,3202.1,6.87672]
[1720963234339,1.3105212,3202.4,3202.1,4.88]
[1720963234543,1.3105212,3202.4,3202.3,9.1609]
[1720963234746,2.39213105,3202.4,3202.3,9.1609]
[1720963234920,1.3105212,3202.4,3202.3,11.6591]
[1720963235127,0.49015082,3202.5,3202.4,9.37436]
[1720963235311,1.3105212,3202.6,3202.5,6.87608]
[1720963235511,1.3105212,3202.7,3202.6,6.87594]
[1720963235712,2.39204121,3202.7,3202.6,24.32894001]
[1720963236213,1.3105212,3202.7,3202.6,24.32894001]
[1720963236410,2.3920317,3202.7,3202.6,24.32894001]
[1720963236637,1.3105212,3202.7,3202.6,24.32894001]
[1720963236825,1.3105212,3202.7,3202.6,27.12822501]
[1720963239651,1.3105212,3202.8,3202.7,4.99578]
[1720963240035,1.3105212,3202.9,3202.8,4.99562]
[1720963240221,1.3105212,3202.9,3202.8,22.44862001]
[1720963240952,2.1273009,3203.0,3202.9,2.49773]
[1720963241153,3.20878097,3203.0,3202.9,2.49773]
[1720963241534,2.12688658,3203.0,3202.9,2.49773]
[1720963241961,2.12675413,3203.0,3202.9,2.49773]
[1720963242134,3.20825385,3203.0,3202.9,2.49773]
[1720963242453,2.12675413,3203.0,3202.9,2.49773]
[1720963243966,0.490083,3203.0,3202.9,2.49773]
[1720963244151,2.12675413,3203.0,3202.9,2.49773]
[1720963244473,0.490083,3203.0,3202.9,2.49773]
[1720963246231,0.490083,3203.0,3202.9,19.95073001]
[1720963246633,0.490083,3203.0,3202.9,17.45300001]
[1720963246854,1.57162708,3203.0,3202.9,17.45300001]
[1720963247359,4.50261627,3203.0,3202.9,17.45300001]
[1720963248164,4.5026574,3203.0,3202.9,17.45300001]
[1720963248946,3.90686821,3203.0,3202.9,17.45300001]
[1720963250575,5.54269378,3203.0,3202.9,17.45300001]
[1720963251372,5.54266482,3203.0,3202.9,17.45300001]
[1720963251732,2.825283,3203.0,3202.9,17.45300001]
[1720963251940,5.54257474,3203.0,3202.9,17.45300001]
[1720963252268,5.54257474,3203.0,3202.7,2.49788]
[1720963252438,1.30858192,3202.8,3202.7,2.49788]
[1720963255563,2.39014867,3202.8,3202.7,2.49788]
[1720963257788,1.30858192,3202.8,3202.7,2.49788]
[1720963257991,2.39014489,3202.8,3202.7,2.49788]
[1720963259204,1.08156297,3202.8,3202.7,2.49788]
[1720963260277,2.06274262,3202.8,3202.7,2.49788]
[1720963260471,1.08156297,3202.8,3202.7,2.49788]
[1720963260686,2.06275913,3202.8,3202.7,2.49788]
[1720963261022,1.08153058,3202.8,3202.7,2.49788]
[1720963261305,0.490083,3203.0,3202.8,2.49781]
[1720963261461,2.38980545,3202.9,3202.8,2.49781]
[1720963262499,1.08153653,3202.9,3202.8,2.49781]
[1720963263704,1.08155492,3202.9,3202.8,2.49781]
[1720963264294,1.08155528,3202.9,3202.8,2.49781]
[1720963266986,2.12578184,3203.0,3202.9,2.49773]
[1720963266987,2.126394,3203.0,3202.9,2.49773]
[1720963267205,1.57161875,3203.0,3202.9,2.49773]
[1720963268013,2.3228,3202.9,3202.7,2.49787]
[1720963268308,2.71824083,3202.8,3202.7,2.49787]
[1720963270111,2.3228,3202.9,3202.7,2.49787]
[1720963270317,2.71879208,3202.8,3202.7,2.49787]
[1720963272474,1.08157201,3202.8,3202.7,2.49787]
[1720963273488,2.3228,3202.9,3202.7,2.49787]
[1720963273812,1.08155666,3202.8,3202.7,2.49787]
[1720963274015,1.08155613,3202.8,3202.7,2.49787]
[1720963275507,1.21741103,3202.8,3202.7,2.49787]
[1720963275811,1.21741103,3202.8,3202.6,17.45300001]
[1720963276115,3.40435613,3202.7,3202.6,17.45300001]
[1720963276294,3.40435613,3202.7,3202.6,22.95097001]
[1720963276484,5.50680102,3202.7,3202.6,22.95097001]
[1720963276822,5.50962294,3202.7,3202.6,22.95097001]
[1720963277579,3.54025101,3202.7,3202.6,20.45300001]
[1720963277916,4.13184249,3202.7,3202.6,17.45300001]
[1720963279986,3.05025044,3202.7,3202.6,17.45300001]
[1720963280220,4.13204481,3202.7,3202.6,17.45300001]
[1720963280588,3.05025044,3202.7,3202.6,17.45300001]
[1720963280787,4.13204516,3202.7,3202.6,17.45300001]
[1720963281319,6.62993516,3202.7,3202.6,17.45300001]
[1720963281526,9.94743023,3202.7,3202.6,17.45300001]
[1720963282040,9.94743023,3202.7,3202.2,3.1]
[1720963282188,2.29655369,3202.4,3202.2,3.1]
[1720963282391,1.21765368,3202.3,3202.2,3.1]
[1720963282814,1.21765368,3202.3,3202.0,2.49843]
[1720963283019,1.9683989,3202.1,3202.0,2.49843]
[1720963283335,0.13585896,3202.1,3202.0,2.49843]
[1720963283629,1.96794258,3202.2,3202.0,2.49843]
[1720963283839,1.0818271,3202.1,3202.0,2.49843]
[1720963284007,1.21771652,3202.1,3202.0,2.49843]
[1720963284202,1.0818271,3202.1,3202.0,2.49843]
[1720963285524,1.0818271,3202.2,3202.0,2.49843]
[1720963285734,1.0818271,3202.1,3202.0,2.49843]
[1720963286589,0.32719788,3202.5,3202.0,2.49843]
[1720963286802,1.96698395,3202.3,3202.0,2.49843]
[1720963287030,1.21771233,3202.2,3202.0,2.49843]
[1720963287193,1.08182315,3202.1,3202.0,2.49843]
[1720963288603,1.08182315,3202.1,3202.0,5.35343]
[1720963288810,1.63878232,3202.1,3202.0,7.78833]
[1720963289018,2.12896429,3202.1,3202.0,10.28676]
[1720963289231,0.49018197,3202.1,3202.0,10.28676]
[1720963292313,1.80103486,3202.1,3202.0,10.28676]
[1720963292838,1.80103486,3202.1,3202.0,14.66519]
[1720963293023,1.4732912,3202.1,3202.0,17.66519]
[1720963293223,0.49018197,3202.1,3202.0,17.66519]
[1720963293633,0.98310923,3202.2,3202.0,17.66519]
[1720963293634,0.65537964,3202.2,3202.1,9.31162]
[1720963293836,0.53029139,3202.2,3202.1,35.47975873]
[1720963294017,0.98310923,3202.4,3202.3,4.9964]
[1720963294227,0.98310923,3202.4,3202.3,7.9964]
[1720963294435,1.31085289,3202.5,3202.3,7.9964]
[1720963294664,1.31085289,3202.5,3202.4,5.49812]
[1720963294869,1.31085289,3202.5,3202.4,7.99624]
[1720963295169,1.80096745,3202.5,3202.4,9.227354]
[1720963296364,1.80096745,3202.5,3202.4,7.99624]
[1720963297944,1.80096745,3202.5,3202.4,10.43114]
[1720963298256,0.49011456,3202.5,3202.4,10.43114]
[1720963299872,0.49011456,3202.5,3202.4,27.88414001]
[1720963300532,1.47312246,3202.5,3202.4,27.88414001]
[1720963300732,1.47312246,3202.5,3202.4,30.86055401]
[1720963301478,0.49011456,3202.5,3202.4,28.42565401]
[1720963301771,1.80080309,3202.5,3202.4,28.42565401]
[1720963304371,0.49011456,3202.5,3202.4,28.42565401]
[1720963304574,1.80080309,3202.5,3202.4,28.42565401]
[1720963308604,1.80080309,3202.5,3202.4,25.44924001]
[1720963310426,0.49011456,3202.5,3202.4,25.44924001]
[1720963310582,1.80080309,3202.5,3202.4,25.44924001]
[1720963312788,1.80093452,3202.5,3202.4,25.44924001]
[1720963319382,2.8824929,3202.5,3202.4,25.44924001]
[1720963319581,2.8824929,3202.5,3202.4,28.18216401]
[1720963321011,2.8824929,3202.5,3202.4,25.68404401]
[1720963321211,3.99407294,3202.5,3202.4,17.45300001]
[1720963321512,6.17426349,3202.5,3202.4,17.45300001]
[1720963321716,4.20830946,3202.5,3202.4,17.45300001]
[1720963322305,6.50287553,3202.5,3202.4,17.45300001]
[1720963322501,5.14110655,3202.5,3202.4,17.45300001]
[1720963322699,4.13023748,3202.5,3202.4,17.45300001]
[1720963323701,4.13023748,3202.5,3202.0,2.49837]
[1720963323901,1.63859692,3202.1,3202.0,2.49837]
[1720963324104,2.72044465,3202.1,3202.0,2.49837]
[1720963324888,2.72032829,3202.1,3202.0,2.49837]
[1720963325296,2.91251456,3202.5,3202.1,2.49835]
[1720963325494,3.18389844,3202.4,3202.1,2.49835]
[1720963325695,1.21768674,3202.3,3202.1,2.49835]
[1720963325906,1.08180162,3202.2,3202.1,2.49835]
[1720963326151,1.9662117,3202.4,3202.1,2.49835]
[1720963326152,1.08180162,3202.3,3202.1,2.49835]
[1720963326315,1.08180162,3202.2,3202.1,2.49835]
[1720963326523,1.08180162,3202.3,3202.1,2.49835]
[1720963327398,1.21768929,3202.3,3202.1,2.49835]
[1720963327611,1.08180162,3202.2,3202.1,2.49835]
[1720963327830,1.9662117,3202.4,3202.1,2.49835]
[1720963327831,1.08180162,3202.3,3202.1,2.49835]
[1720963328032,2.91251456,3202.5,3202.1,2.49835]
[1720963328328,3.18385847,3202.4,3202.1,2.49835]
[1720963328536,1.21770165,3202.3,3202.1,2.49835]
[1720963328736,1.08181455,3202.3,3202.1,2.49835]
[1720963328934,1.08181455,3202.2,3202.1,2.49835]
[1720963329132,3.04797137,3202.3,3202.1,2.49835]
[1720963329332,3.04797137,3202.3,3202.0,3.1]
[1720963329536,1.63844947,3202.1,3202.0,3.1]
[1720963329710,2.72026402,3202.1,3202.0,3.1]
[1720963330029,2.72025362,3202.1,3202.0,3.1]
[1720963330237,1.08181455,3202.1,3202.0,5.59843]
[1720963330415,1.63845646,3202.1,3202.0,5.59843]
[1720963330602,3.33431455,3202.1,3202.0,5.59843]
[1720963331319,3.33432851,3202.1,3202.0,5.59843]
[1720963331526,3.33432886,3202.1,3202.0,5.59843]
[1720963333508,4.97277168,3202.1,3202.0,5.59843]
[1720963334009,2.72027168,3202.1,3202.0,5.59843]
[1720963334436,2.72027168,3202.1,3202.0,10.65186]
[1720963334640,0.49011456,3202.5,3202.3,2.4982]
[1720963334937,1.08172877,3202.4,3202.3,2.4982]
[1720963336052,2.12837559,3202.5,3202.4,4.99624]
[1720963336269,3.20998894,3202.5,3202.4,4.99624]
[1720963336470,2.12837559,3202.5,3202.4,7.729164]
[1720963336774,3.21000284,3202.5,3202.4,7.729164]
[1720963337065,0.49011456,3202.5,3202.4,7.729164]
[1720963337229,1.80061139,3202.5,3202.4,7.729164]
[1720963337581,1.80061139,3202.5,3202.4,27.06216401]
[1720963337865,1.80061139,3202.5,3202.4,30.06216401]
[1720963338026,0.49011456,3202.5,3202.4,30.06216401]
[1720963339257,1.80065413,3202.5,3202.4,25.68404401]
[1720963339462,1.80065413,3202.5,3202.4,22.95112001]
[1720963339823,0.49011456,3202.5,3202.4,27.32924001]
[1720963340438,1.80065413,3202.5,3202.4,27.32924001]
[1720963340636,0.49011456,3202.5,3202.4,30.31140401]
[1720963341180,1.80066937,3202.5,3202.4,30.31140401]
[1720963341340,0.49011456,3202.5,3202.4,30.31140401]
[1720963345932,1.47300121,3202.5,3202.4,30.31140401]
[1720963346134,0.49011456,3202.5,3202.4,30.31140401]
[1720963346334,1.47300121,3202.5,3202.4,30.31140401]
[1720963348544,0.49011456,3202.5,3202.4,30.31140401]
[1720963349481,1.31055481,3202.7,3202.5,1.88]
[1720963349482,0.8112538,3202.7,3202.5,1.88]
[1720963349687,1.31055481,3202.9,3202.8,4.99562]
[1720963349839,1.31055481,3203.0,3202.9,4.99546]
[1720963351316,2.71453135,3203.5,3203.4,2.49734]
[1720963351317,4.67961018,3203.5,3203.4,2.49734]
[1720963351486,5.89680876,3203.5,3203.4,2.49734]
[1720963351791,5.8965852,3203.5,3203.4,2.49734]
[1720963353149,5.89640243,3203.5,3203.4,2.49734]
[1720963353974,3.7958932,3203.5,3203.4,2.49734]
[1720963354276,3.79587869,3203.5,3203.4,2.49734]
[1720963354574,3.79587595,3203.5,3203.4,2.49734]
[1720963355091,3.04527116,3203.5,3203.4,2.996814]
[1720963355295,2.12682965,3203.6,3203.5,4.99452]
[1720963355469,2.12682965,3203.6,3203.5,24.32752001]
[1720963355470,1.79900266,3203.6,3203.5,24.32752001]
[1720963355793,0.49003444,3203.6,3203.5,27.05995541]
[1720963356455,0.49003444,3203.6,3203.5,30.03495541]
[1720963359568,1.14372976,3203.6,3203.5,30.03495541]
[1720963360368,0.49003444,3203.6,3203.5,30.03495541]
[1720963361096,1.14357714,3203.6,3203.5,30.03495541]
[1720963361600,0.49003444,3203.6,3203.5,30.03495541]
[1720963364181,2.87743444,3203.6,3203.5,20.45300001]
[1720963364387,3.53097714,3203.6,3203.5,20.45300001]
[1720963364901,2.87743444,3203.6,3203.5,20.45300001]
[1720963366815,3.53053573,3203.6,3203.5,20.45300001]
[1720963367013,2.87743444,3203.6,3203.5,20.45300001]
[1720963367181,3.53053397,3203.6,3203.5,20.45300001]
[1720963367816,2.87743444,3203.6,3203.5,20.45300001]
[1720963368191,3.95878136,3203.6,3203.5,20.45300001]
[1720963369690,4.93909542,3203.6,3203.5,20.45300001]
[1720963370314,3.95878136,3203.6,3203.5,20.45300001]
[1720963370641,3.9587739,3203.6,3203.5,20.45300001]
[1720963370846,4.93908796,3203.6,3203.5,20.45300001]
[1720963371222,4.93908796,3203.6,3203.5,3.0]
[1720963371421,4.93908796,3203.6,3203.3,5.49739]
[1720963371622,0.65329911,3203.5,3203.3,5.49739]
[1720963372814,0.65329911,3203.5,3203.4,11.70972]
[1720963373107,3.11119911,3203.9,3203.4,3.0]
[1720963373444,0.65329911,3203.7,3203.3,3.0]
[1720963373604,0.65329911,3203.7,3203.4,2.49734]
[1720963373605,0.73134368,3203.7,3203.4,2.49734]
[1720963373809,0.65329911,3203.5,3203.4,3.1]
[1720963374046,1.08128238,3203.5,3203.4,3.1]
[1720963374222,2.06159644,3203.5,3203.4,3.1]
[1720963374543,7.36142908,3203.5,3203.4,3.1]
[1720963374847,8.01452321,3203.5,3203.4,3.1]
[1720963375014,6.38111502,3203.5,3203.4,3.1]
[1720963375217,8.01507805,3203.5,3203.4,3.1]
[1720963375533,6.72069902,3203.5,3203.4,3.1]
[1720963375845,6.38111502,3203.5,3203.4,3.1]
[1720963376348,4.22333093,3203.5,3203.4,3.1]
[1720963377046,5.51858474,3203.5,3203.4,3.1]
[1720963377238,4.2234612,3203.5,3203.4,3.1]
[1720963377549,4.22350728,3203.5,3203.4,3.1]
[1720963380247,4.22348885,3203.5,3203.4,3.1]
[1720963381218,1.42091621,3203.5,3203.4,3.1]
[1720963382753,1.42087091,3203.5,3203.4,3.1]
[1720963385951,0.3394601,3203.5,3203.4,3.1]
[1720963386321,1.42088606,3203.5,3203.4,3.1]
[1720963388441,3.38564499,3203.5,3203.4,3.1]
[1720963388643,1.42088606,3203.5,3203.4,3.1]
[1720963389152,1.9109028,3203.5,3203.4,3.1]
[1720963389366,0.82947684,3203.5,3203.4,3.1]
[1720963389520,2.79496536,3203.5,3203.4,3.1]
[1720963389715,3.87638535,3203.5,3203.4,3.1]
[1720963389921,3.87644525,3203.5,3203.4,3.1]